fUST/lending_fUST_20250706
["ID","MTS","AMOUNT","RATE_DAILY","PERIOD"]
[369813410,1751731844013,-1281.91,0.00019452,2]
[369813412,1751731844024,-460.0,0.00019452,2]
[369813414,1751731844035,-460.0,0.00019452,2]
[369813417,1751731844046,-479.19,0.00019452,2]
[369813419,1751731844058,-400.00000162,0.00019452,2]
[369813421,1751731844069,-460.0,0.00019452,2]
[369813423,1751731844080,-478.7,0.00019452,2]
[369813425,1751731844091,-460.0,0.00019452,2]
[369813427,1751731844102,-1214.92,0.00019452,2]
[369813429,1751731844113,-844.28,0.00019452,2]
[369813432,1751731844124,-460.0,0.00019452,2]
[369813434,1751731844134,-460.0,0.00019452,2]
[369813436,1751731844146,-460.0,0.00019452,2]
[369813439,1751731844157,-460.0,0.00019452,2]
[369813441,1751731844168,-460.0,0.00019452,2]
[369813443,1751731844178,-460.0,0.00019452,2]
[369813445,1751731844189,-460.0,0.00019452,2]
[369813448,1751731844201,-460.0,0.00019452,2]
[369813450,1751731844212,-460.0,0.00019452,2]
[369813452,1751731844222,-460.0,0.00019452,2]
[369813454,1751731844232,-460.0,0.00019452,2]
[369813456,1751731844242,-460.0,0.00019452,2]
[369813458,1751731844252,-460.0,0.00019452,2]
[369813460,1751731844262,-460.0,0.00019452,2]
[369813479,1751731844537,-460.0,0.00019452,2]
[369813481,1751731844547,-460.0,0.00019452,2]
[369813483,1751731844557,-460.0,0.00019452,2]
[369813485,1751731844567,-546.91761692,0.00019452,2]
[369813487,1751731844577,-460.0,0.00019452,2]
[369813490,1751731844598,-460.0,0.00019452,2]
[369813492,1751731844609,-460.0,0.00019452,2]
[369813494,1751731844620,-460.0,0.00019452,2]
[369813497,1751731844630,-1316.65,0.00019452,2]
[369813499,1751731844641,-460.0,0.00019452,2]
[369813501,1751731844651,-460.0,0.00019452,2]
[369813503,1751731844661,-460.0,0.00019452,2]
[369813505,1751731844671,-460.0,0.00019452,2]
[369813507,1751731844681,-460.0,0.00019452,2]
[369813509,1751731844691,-1058.86,0.00019452,2]
[369813511,1751731844700,-700.42,0.00019452,2]
[369813513,1751731844710,-460.0,0.00019452,2]
[369813515,1751731844720,-460.0,0.00019452,2]
[369813517,1751731844730,-460.0,0.00019452,2]
[369813519,1751731844741,-460.0,0.00019452,2]
[369813521,1751731844751,-460.0,0.00019452,2]
[369813524,1751731844761,-460.0,0.00019452,2]
[369813526,1751731844770,-580.87,0.00019452,2]
[369813528,1751731844780,-460.0,0.00019452,2]
[369813530,1751731844790,-3001.68,0.00019452,2]
[369813532,1751731844799,-1157.82,0.00019452,2]
[369813534,1751731844809,-460.0,0.00019452,2]
[369813536,1751731844818,-808.98,0.00019452,2]
[369813538,1751731844828,-460.0,0.00019452,2]
[369813540,1751731844837,-460.0,0.00019452,2]
[369813542,1751731844849,-316.89136477,0.00019452,2]
[369813544,1751731844859,-460.0,0.00019452,2]
[369813546,1751731844869,-460.0,0.00019452,2]
[369813548,1751731844879,-460.0,0.00019452,2]
[369813550,1751731844890,-460.0,0.00019452,2]
[369813552,1751731844900,-460.0,0.00019452,2]
[369813554,1751731844910,-460.0,0.00019452,2]
[369813556,1751731844920,-460.0,0.00019452,2]
[369813558,1751731844934,-460.0,0.00019452,2]
[369813560,1751731844944,-460.0,0.00019452,2]
[369813562,1751731844954,-460.0,0.00019452,2]
[369813564,1751731844965,-460.0,0.00019452,2]
[369813566,1751731844975,-7398.21,0.00019452,2]
[369813568,1751731844984,-206.72417044,0.00019452,2]
[369813570,1751731844994,-460.0,0.00019452,2]
[369813572,1751731845004,-460.0,0.00019452,2]
[369813574,1751731845014,-2421.71,0.00019452,2]
[369813576,1751731845024,-460.0,0.00019452,2]
[369813578,1751731845034,-460.0,0.00019452,2]
[369813580,1751731845043,-460.0,0.00019452,2]
[369813582,1751731845053,-460.0,0.00019452,2]
[369813584,1751731845063,-460.0,0.00019452,2]
[369813587,1751731845073,-460.0,0.00019452,2]
[369813589,1751731845083,-690.61,0.00019452,2]
[369813591,1751731845094,-460.0,0.00019452,2]
[369813593,1751731845104,-460.0,0.00019452,2]
[369813595,1751731845113,-5605.89,0.00019452,2]
[369813597,1751731845124,-460.0,0.00019452,2]
[369813599,1751731845133,-460.0,0.00019452,2]
[369813601,1751731845144,-1239.31,0.00019452,2]
[369813603,1751731845154,-1411.87,0.00019452,2]
[369813605,1751731845164,-460.0,0.00019452,2]
[369813607,1751731845174,-460.0,0.00019452,2]
[369813609,1751731845183,-460.0,0.00019452,2]
[369813611,1751731845193,-460.0,0.00019452,2]
[369813614,1751731845203,-460.0,0.00019452,2]
[369813616,1751731845213,-525.95,0.00019452,2]
[369813618,1751731845223,-460.0,0.00019452,2]
[369813620,1751731845232,-2825.37,0.00019452,2]
[369813622,1751731845242,-5768.89,0.00019452,2]
[369813624,1751731845251,-1036.78,0.00019452,2]
[369813626,1751731845261,-460.0,0.00019452,2]
[369813628,1751731845271,-460.0,0.00019452,2]
[369813630,1751731845280,-460.0,0.00019452,2]
[369813632,1751731845289,-460.0,0.00019452,2]
[369813634,1751731845299,-460.0,0.00019452,2]
[369813636,1751731845308,-460.0,0.00019452,2]
[369813638,1751731845318,-1123.07,0.00019452,2]
[369813640,1751731845327,-787.3,0.00019452,2]
[369813642,1751731845337,-460.0,0.00019452,2]
[369813644,1751731845347,-460.0,0.00019452,2]
[369813646,1751731845356,-460.0,0.00019452,2]
[369813648,1751731845366,-604.54658902,0.00019452,2]
[369813650,1751731845375,-460.0,0.00019452,2]
[369813652,1751731845384,-470.91,0.00019452,2]
[369813654,1751731845395,-460.0,0.00019452,2]
[369813656,1751731845404,-460.0,0.00019452,2]
[369813658,1751731845414,-460.0,0.00019452,2]
[369813660,1751731845423,-460.0,0.00019452,2]
[369813662,1751731845432,-711.5,0.00019452,2]
[369813664,1751731845442,-460.0,0.00019452,2]
[369813666,1751731845452,-634.25,0.00019452,2]
[369813668,1751731845462,-512.39,0.00019452,2]
[369813670,1751731845472,-460.0,0.00019452,2]
[369813672,1751731845482,-1022.49,0.00019452,2]
[369813674,1751731845492,-460.0,0.00019452,2]
[369813676,1751731845502,-460.0,0.00019452,2]
[369813678,1751731845511,-555.51,0.00019452,2]
[369813680,1751731845531,-460.0,0.00019452,2]
[369813682,1751731845552,-460.0,0.00019452,2]
[369813684,1751731845565,-460.0,0.00019452,2]
[369813686,1751731845576,-460.0,0.00019452,2]
[369813688,1751731845589,-460.0,0.00019452,2]
[369813690,1751731845605,-4372.65,0.00019452,2]
[369813692,1751731845615,-812.49,0.00019452,2]
[369813694,1751731845626,-491.95,0.00019452,2]
[369813696,1751731845635,-460.0,0.00019452,2]
[369813698,1751731845645,-460.0,0.00019452,2]
[369813701,1751731845656,-460.0,0.00019452,2]
[369813703,1751731845666,-460.0,0.00019452,2]
[369813705,1751731845676,-1729.46,0.00019452,2]
[369813707,1751731845685,-2630.7,0.00019452,2]
[369813709,1751731845696,-460.0,0.00019452,2]
[369813711,1751731845705,-4642.57,0.00019452,2]
[369813713,1751731845714,-460.0,0.00019452,2]
[369813715,1751731845724,-607.17,0.00019452,2]
[369813717,1751731845735,-3063.24,0.00019452,2]
[369813719,1751731845744,-460.0,0.00019452,2]
[369813721,1751731845754,-460.0,0.00019452,2]
[369813723,1751731845763,-460.0,0.00019452,2]
[369813725,1751731845773,-721.27,0.00019452,2]
[369813727,1751731845782,-460.0,0.00019452,2]
[369813729,1751731845792,-992.43,0.00019452,2]
[369813731,1751731845802,-1146.83,0.00019452,2]
[369813733,1751731845812,-573.32,0.00019452,2]
[369813735,1751731845821,-592.05,0.00019452,2]
[369813737,1751731845830,-460.0,0.00019452,2]
[369813739,1751731845840,-555.0,0.00019452,2]
[369813742,1751731845854,-3070.89,0.00019452,2]
[369813744,1751731845864,-460.0,0.00019452,2]
[369813746,1751731845873,-460.0,0.00019452,2]
[369813748,1751731845883,-179.99707372,0.00019452,2]
[369813750,1751731845894,-780.19,0.00019452,2]
[369813752,1751731845904,-460.0,0.00019452,2]
[369813754,1751731845913,-460.0,0.00019452,2]
[369813756,1751731845923,-2122.58,0.00019452,2]
[369813758,1751731845933,-3364.0,0.00019452,2]
[369813760,1751731845943,-460.0,0.00019452,2]
[369813763,1751731845953,-460.0,0.00019452,2]
[369813765,1751731845962,-460.0,0.00019452,2]
[369813767,1751731845972,-460.0,0.00019452,2]
[369813769,1751731845982,-954.19,0.00019452,2]
[369813771,1751731845992,-460.0,0.00019452,2]
[369813773,1751731846002,-460.0,0.00019452,2]
[369813775,1751731846012,-486.49,0.00019452,2]
[369813777,1751731846021,-569.53,0.00019452,2]
[369813779,1751731846031,-806.65,0.00019452,2]
[369813781,1751731846041,-157.15,0.00019452,2]
[369813783,1751731846050,-460.0,0.00019452,2]
[369813785,1751731846060,-325.54243533,0.00019452,2]
[369813787,1751731846070,-1088.14,0.00019452,2]
[369813789,1751731846080,-1223.45,0.00019452,2]
[369813791,1751731846094,-572.6,0.00019452,2]
[369813793,1751731846105,-460.0,0.00019452,2]
[369813795,1751731846115,-7014.68,0.00019452,2]
[369813797,1751731846124,-460.0,0.00019452,2]
[369813799,1751731846134,-460.0,0.00019452,2]
[369813801,1751731846144,-460.0,0.00019452,2]
[369813803,1751731846154,-504.18774716,0.00019452,2]
[369813805,1751731846163,-569.66,0.00019452,2]
[369813807,1751731846173,-460.0,0.00019452,2]
[369813809,1751731846182,-688.25,0.00019452,2]
[369813811,1751731846192,-460.0,0.00019452,2]
[369813813,1751731846201,-1054.12,0.00019452,2]
[369813815,1751731846211,-2098.47,0.00019452,2]
[369813818,1751731846222,-500.81,0.00019452,2]
[369813820,1751731846232,-1178.33,0.00019452,2]
[369813822,1751731846241,-616.6,0.00019452,2]
[369813824,1751731846250,-460.0,0.00019452,2]
[369813825,1751731846260,-460.0,0.00019452,2]
[369813828,1751731846269,-1774.23,0.00019452,2]
[369813830,1751731846279,-4122.88,0.00019452,2]
[369813832,1751731846289,-460.0,0.00019452,2]
[369813833,1751731846298,-1513.19,0.00019452,2]
[369813836,1751731846308,-460.0,0.00019452,2]
[369813838,1751731846317,-460.0,0.00019452,2]
[369813840,1751731846327,-342.73109657,0.00019452,2]
[369813841,1751731846337,-460.0,0.00019452,2]
[369813843,1751731846347,-207.4,0.00019471,2]
[369813845,1751731846356,-203.40307185,0.00019489,2]
[369813847,1751731846366,-151.0,0.00019617,2]
[369813849,1751731846375,-151.0,0.00019617,2]
[369813851,1751731846385,-151.0,0.00019617,2]
[369813853,1751731846394,-151.0,0.00019617,2]
[369813855,1751731846404,-151.0,0.00019617,2]
[369813857,1751731846413,-266.52760523,0.00019617,2]
[369813859,1751731846423,-151.0,0.00019617,2]
[369813861,1751731846433,-151.0,0.00019617,2]
[369813863,1751731846442,-151.0,0.00019644,2]
[369813865,1751731846451,-151.0,0.00019644,2]
[369813867,1751731846461,-198.0,0.00019672,2]
[369813869,1751731846470,-198.0,0.00019672,2]
[369813871,1751731846479,-500.0,0.00019693,2]
[369813873,1751731846489,-203.40307185,0.00019695,2]
[369813875,1751731846498,-1280.55,0.00019725,2]
[369813877,1751731846510,-1717.13,0.00019725,2]
[369813879,1751731846519,-460.0,0.00019725,2]
[369813881,1751731846531,-620.11,0.00019725,2]
[369813883,1751731846541,-2238.09,0.00019725,2]
[369813885,1751731846551,-460.0,0.00019725,2]
[369813887,1751731846561,-1653.72,0.00019725,2]
[369813889,1751731846571,-460.0,0.00019726,2]
[369813891,1751731846581,-460.0,0.00019726,2]
[369813893,1751731846590,-460.0,0.00019726,2]
[369813895,1751731846600,-460.0,0.00019726,2]
[369813897,1751731846610,-460.0,0.00019726,2]
[369813899,1751731846619,-552.66,0.00019726,2]
[369813901,1751731846628,-460.0,0.00019726,2]
[369813903,1751731846638,-460.0,0.00019726,2]
[369813905,1751731846648,-460.0,0.00019726,2]
[369813907,1751731846658,-460.0,0.00019726,2]
[369813909,1751731846667,-460.0,0.00019726,2]
[369813911,1751731846677,-460.0,0.00019726,2]
[369813913,1751731846687,-460.0,0.00019726,2]
[369813915,1751731846696,-510.89,0.00019726,2]
[369813917,1751731846706,-460.0,0.00019726,2]
[369813919,1751731846715,-460.0,0.00019726,2]
[369813921,1751731846725,-460.0,0.00019726,2]
[369813923,1751731846734,-460.0,0.00019726,2]
[369813926,1751731846744,-460.0,0.00019726,2]
[369813927,1751731846753,-460.0,0.00019726,2]
[369813930,1751731846763,-460.0,0.00019726,2]
[369813932,1751731846773,-536.27,0.00019726,2]
[369813934,1751731846784,-460.0,0.00019726,2]
[369813936,1751731846794,-460.0,0.00019726,2]
[369813938,1751731846803,-460.0,0.00019726,2]
[369813940,1751731846814,-821.16,0.00019726,2]
[369813942,1751731846823,-460.0,0.00019726,2]
[369813944,1751731846833,-418.83412173,0.00019726,2]
[369813946,1751731846843,-460.0,0.00019726,2]
[369813948,1751731846857,-460.0,0.00019726,2]
[369813950,1751731846867,-173.81,0.00019726,2]
[369813952,1751731846877,-460.0,0.00019726,2]
[369813954,1751731846887,-874.47,0.00019726,2]
[369813956,1751731846898,-460.0,0.00019726,2]
[369813958,1751731846907,-460.0,0.00019726,2]
[369813960,1751731846918,-460.0,0.00019726,2]
[369813962,1751731846928,-460.0,0.00019726,2]
[369813964,1751731846939,-777.05,0.00019726,2]
[369813966,1751731846950,-460.0,0.00019726,2]
[369813968,1751731846960,-460.0,0.00019726,2]
[369813970,1751731846970,-460.0,0.00019726,2]
[369813972,1751731846980,-460.0,0.00019726,2]
[369813974,1751731846990,-460.0,0.00019726,2]
[369813977,1751731847000,-1281.91,0.00019726,2]
[369813979,1751731847011,-460.0,0.00019726,2]
[369813981,1751731847020,-460.0,0.00019726,2]
[369813983,1751731847031,-479.19,0.00019726,2]
[369813985,1751731847041,-460.0,0.00019726,2]
[369813987,1751731847052,-210.06602788,0.00019726,2]
[369813989,1751731847062,-478.7,0.00019726,2]
[369813991,1751731847071,-1214.92,0.00019726,2]
[369813993,1751731847081,-844.28,0.00019726,2]
[369813995,1751731847091,-460.0,0.00019726,2]
[369813997,1751731847101,-460.0,0.00019726,2]
[369813999,1751731847111,-460.0,0.00019726,2]
[369814001,1751731847120,-460.0,0.00019726,2]
[369814003,1751731847130,-596.66253796,0.00019726,2]
[369814005,1751731847140,-460.0,0.00019726,2]
[369814007,1751731847151,-460.0,0.00019726,2]
[369814009,1751731847160,-460.0,0.00019726,2]
[369814011,1751731847170,-460.0,0.00019726,2]
[369814013,1751731847180,-460.0,0.00019726,2]
[369814016,1751731847190,-460.0,0.00019726,2]
[369814018,1751731847199,-460.0,0.00019726,2]
[369814020,1751731847209,-460.0,0.00019726,2]
[369814022,1751731847219,-460.0,0.00019726,2]
[369814024,1751731847228,-460.0,0.00019726,2]
[369814026,1751731847238,-460.0,0.00019726,2]
[369814028,1751731847250,-1316.65,0.00019726,2]
[369814030,1751731847261,-460.0,0.00019726,2]
[369814032,1751731847271,-460.0,0.00019726,2]
[369814034,1751731847281,-460.0,0.00019726,2]
[369814036,1751731847290,-1058.86,0.00019726,2]
[369814038,1751731847300,-700.42,0.00019726,2]
[369814040,1751731847310,-460.0,0.00019726,2]
[369814042,1751731847319,-460.0,0.00019726,2]
[369814044,1751731847329,-460.0,0.00019726,2]
[369814046,1751731847338,-460.0,0.00019726,2]
[369814047,1751731847348,-460.0,0.00019726,2]
[369814049,1751731847357,-580.87,0.00019726,2]
[369814051,1751731847367,-171.22,0.00019726,2]
[369814053,1751731847377,-3001.68,0.00019726,2]
[369814055,1751731847386,-1157.82,0.00019726,2]
[369814057,1751731847397,-460.0,0.00019726,2]
[369814059,1751731847407,-808.98,0.00019726,2]
[369814061,1751731847417,-460.0,0.00019726,2]
[369814063,1751731847428,-460.0,0.00019726,2]
[369814065,1751731847438,-460.0,0.00019726,2]
[369814067,1751731847447,-460.0,0.00019726,2]
[369814069,1751731847457,-460.0,0.00019726,2]
[369814071,1751731847467,-460.0,0.00019726,2]
[369814073,1751731847477,-460.0,0.00019726,2]
[369814075,1751731847487,-460.0,0.00019726,2]
[369814077,1751731847497,-460.0,0.00019726,2]
[369814079,1751731847506,-460.0,0.00019726,2]
[369814081,1751731847516,-460.0,0.00019726,2]
[369814083,1751731847526,-460.0,0.00019726,2]
[369814085,1751731847536,-460.0,0.00019726,2]
[369814088,1751731847546,-7398.21,0.00019726,2]
[369814090,1751731847557,-460.0,0.00019726,2]
[369814092,1751731847567,-460.0,0.00019726,2]
[369814094,1751731847577,-2421.71,0.00019726,2]
[369814095,1751731847586,-460.0,0.00019726,2]
[369814098,1751731847596,-460.0,0.00019726,2]
[369814100,1751731847607,-460.0,0.00019726,2]
[369814102,1751731847616,-586.84432736,0.00019726,2]
[369814104,1751731847627,-460.0,0.00019726,2]
[369814106,1751731847637,-460.0,0.00019726,2]
[369814107,1751731847648,-690.61,0.00019726,2]
[369814110,1751731847659,-304.56904208,0.00019726,2]
[369814111,1751731847668,-460.0,0.00019726,2]
[369814114,1751731847678,-5605.89,0.00019726,2]
[369814115,1751731847687,-460.0,0.00019726,2]
[369814117,1751731847697,-1239.31,0.00019726,2]
[369814119,1751731847707,-1411.87,0.00019726,2]
[369814121,1751731847717,-460.0,0.00019726,2]
[369814124,1751731847730,-460.0,0.00019726,2]
[369814126,1751731847740,-460.0,0.00019726,2]
[369814128,1751731847751,-460.0,0.00019726,2]
[369814129,1751731847761,-460.0,0.00019726,2]
[369814132,1751731847771,-525.95,0.00019726,2]
[369814149,1751731847936,-5768.89,0.00019726,2]
[369814151,1751731847954,-2825.37,0.00019726,2]
[369814153,1751731847964,-1036.78,0.00019726,2]
[369814156,1751731847973,-460.0,0.00019726,2]
[369814158,1751731847983,-460.0,0.00019726,2]
[369814159,1751731847992,-460.0,0.00019726,2]
[369814162,1751731848002,-460.0,0.00019726,2]
[369814163,1751731848011,-460.0,0.00019726,2]
[369814166,1751731848022,-460.0,0.00019726,2]
[369814167,1751731848031,-1123.07,0.00019726,2]
[369814170,1751731848041,-787.3,0.00019726,2]
[369814172,1751731848051,-460.0,0.00019726,2]
[369814174,1751731848060,-460.0,0.00019726,2]
[369814176,1751731848069,-460.0,0.00019726,2]
[369814178,1751731848079,-460.0,0.00019726,2]
[369814180,1751731848088,-470.91,0.00019726,2]
[369814182,1751731848098,-460.0,0.00019726,2]
[369814184,1751731848109,-460.0,0.00019726,2]
[369814186,1751731848119,-460.0,0.00019726,2]
[369814188,1751731848129,-460.0,0.00019726,2]
[369814190,1751731848138,-711.5,0.00019726,2]
[369814192,1751731848149,-634.25,0.00019726,2]
[369814194,1751731848158,-512.39,0.00019726,2]
[369814196,1751731848168,-460.0,0.00019726,2]
[369814198,1751731848178,-1022.49,0.00019726,2]
[369814200,1751731848188,-460.0,0.00019726,2]
[369814202,1751731848198,-555.51,0.00019726,2]
[369814204,1751731848208,-460.0,0.00019726,2]
[369814206,1751731848218,-460.0,0.00019726,2]
[369814208,1751731848228,-460.0,0.00019726,2]
[369814210,1751731848238,-460.0,0.00019726,2]
[369814212,1751731848248,-4372.65,0.00019726,2]
[369814214,1751731848258,-812.49,0.00019726,2]
[369814216,1751731848268,-491.95,0.00019726,2]
[369814218,1751731848278,-460.0,0.00019726,2]
[369814220,1751731848288,-460.0,0.00019726,2]
[369814222,1751731848297,-460.0,0.00019726,2]
[369814224,1751731848307,-460.0,0.00019726,2]
[369814226,1751731848317,-1729.46,0.00019726,2]
[369814228,1751731848326,-2630.7,0.00019726,2]
[369814230,1751731848337,-460.0,0.00019726,2]
[369814232,1751731848346,-4642.57,0.00019726,2]
[369814234,1751731848356,-460.0,0.00019726,2]
[369814236,1751731848365,-3063.24,0.00019726,2]
[369814238,1751731848375,-607.17,0.00019726,2]
[369814240,1751731848384,-460.0,0.00019726,2]
[369814242,1751731848394,-362.59625966,0.00019726,2]
[369814261,1751731848567,-97.40374034,0.00019726,2]
[369814263,1751731848576,-460.0,0.00019726,2]
[369814265,1751731848587,-721.27,0.00019726,2]
[369814267,1751731848596,-992.43,0.00019726,2]
[369814268,1751731848605,-1146.83,0.00019726,2]
[369814269,1751731848615,-573.32,0.00019726,2]
[369814270,1751731848625,-592.05,0.00019726,2]
[369814271,1751731848635,-460.0,0.00019726,2]
[369814272,1751731848645,-555.0,0.00019726,2]
[369814273,1751731848654,-3070.89,0.00019726,2]
[369814274,1751731848664,-460.0,0.00019726,2]
[369814275,1751731848673,-460.0,0.00019726,2]
[369814276,1751731848683,-780.19,0.00019726,2]
[369814277,1751731848692,-460.0,0.00019726,2]
[369814278,1751731848701,-460.0,0.00019726,2]
[369814279,1751731848711,-2122.58,0.00019726,2]
[369814280,1751731848720,-3364.0,0.00019726,2]
[369814281,1751731848730,-460.0,0.00019726,2]
[369814282,1751731848740,-460.0,0.00019726,2]
[369814283,1751731848749,-954.19,0.00019726,2]
[369814284,1751731848759,-486.49,0.00019726,2]
[369814285,1751731848768,-569.53,0.00019726,2]
[369814286,1751731848777,-806.65,0.00019726,2]
[369814288,1751731848787,-155.0,0.00019726,2]
[369814289,1751731848796,-460.0,0.00019726,2]
[369814291,1751731848805,-1088.14,0.00019726,2]
[369814293,1751731848814,-1223.45,0.00019726,2]
[369814295,1751731848825,-572.6,0.00019726,2]
[369814297,1751731848835,-7014.68,0.00019726,2]
[369814299,1751731848845,-460.0,0.00019726,2]
[369814302,1751731848859,-460.0,0.00019726,2]
[369814304,1751731848869,-460.0,0.00019726,2]
[369814306,1751731848878,-569.66,0.00019726,2]
[369814308,1751731848888,-688.25,0.00019726,2]
[369814310,1751731848900,-460.0,0.00019726,2]
[369814312,1751731848909,-460.0,0.00019726,2]
[369814314,1751731848919,-1054.12,0.00019726,2]
[369814316,1751731848930,-2098.47,0.00019726,2]
[369814318,1751731848940,-500.81,0.00019726,2]
[369814320,1751731848951,-1178.33,0.00019726,2]
[369814322,1751731848960,-616.6,0.00019726,2]
[369814324,1751731848969,-460.0,0.00019726,2]
[369814326,1751731848979,-460.0,0.00019726,2]
[369814328,1751731848989,-1774.23,0.00019726,2]
[369814330,1751731848999,-4122.88,0.00019726,2]
[369814332,1751731849008,-460.0,0.00019726,2]
[369814334,1751731849018,-1513.19,0.00019726,2]
[369814336,1751731849027,-460.0,0.00019726,2]
[369814338,1751731849037,-460.0,0.00019726,2]
[369814340,1751731849046,-500.0,0.00019777,2]
[369814342,1751731849056,-500.0,0.00019777,2]
[369814344,1751731849066,-500.0,0.00019777,2]
[369814346,1751731849075,-221.64458744,0.00019777,2]
[369814348,1751731849085,-500.0,0.00019777,2]
[369814350,1751731849095,-500.0,0.00019777,2]
[369814352,1751731849104,-1000.0,0.00019788,5]
[369814354,1751731849114,-317.03013497,0.00019853,2]
[369814356,1751731849123,-203.40307185,0.000199,2]
[369814358,1751731849133,-2469.42657315,0.000199,2]
[369814360,1751731849143,-1280.55,0.00019999,2]
[369814362,1751731849152,-1717.13,0.00019999,2]
[369814363,1751731849161,-460.0,0.00019999,2]
[369814366,1751731849171,-620.11,0.00019999,2]
[369814367,1751731849181,-2238.09,0.00019999,2]
[369814369,1751731849190,-460.0,0.00019999,2]
[369814371,1751731849200,-1653.72,0.00019999,2]
[369814373,1751731849210,-151.0,0.00019999,2]
[369814375,1751731849220,-460.0,0.0002,2]
[369814378,1751731849230,-460.0,0.0002,2]
[369814380,1751731849239,-460.0,0.0002,2]
[369814382,1751731849249,-460.0,0.0002,2]
[369814384,1751731849259,-597.94248567,0.0002,2]
[369814386,1751731849269,-279.54,0.0002,2]
[369814388,1751731849278,-460.0,0.0002,2]
[369814390,1751731849288,-460.0,0.0002,2]
[369814392,1751731849298,-460.0,0.0002,2]
[369814394,1751731849307,-460.0,0.0002,2]
[369814396,1751731849317,-460.0,0.0002,2]
[369814398,1751731849326,-460.0,0.0002,2]
[369814400,1751731849336,-460.0,0.0002,2]
[369814402,1751731849345,-460.0,0.0002,2]
[369814404,1751731849355,-460.0,0.0002,2]
[369814406,1751731849365,-460.0,0.0002,2]
[369814408,1751731849374,-510.89,0.0002,2]
[369814410,1751731849384,-460.0,0.0002,2]
[369814412,1751731849393,-460.0,0.0002,2]
[369814414,1751731849403,-460.0,0.0002,2]
[369814416,1751731849412,-460.0,0.0002,2]
[369814418,1751731849421,-460.0,0.0002,2]
[369814420,1751731849433,-460.0,0.0002,2]
[369814422,1751731849443,-460.0,0.0002,2]
[369814424,1751731849453,-460.0,0.0002,2]
[369814425,1751731849462,-460.0,0.0002,2]
[369814428,1751731849472,-460.0,0.0002,2]
[369814429,1751731849481,-460.0,0.0002,2]
[369814431,1751731849491,-821.16,0.0002,2]
[369814433,1751731849501,-460.0,0.0002,2]
[369814435,1751731849510,-460.0,0.0002,2]
[369814437,1751731849520,-460.0,0.0002,2]
[369814439,1751731849529,-460.0,0.0002,2]
[369814441,1751731849539,-874.47,0.0002,2]
[369814443,1751731849549,-460.0,0.0002,2]
[369814445,1751731849559,-460.0,0.0002,2]
[369814447,1751731849568,-460.0,0.0002,2]
[369814449,1751731849578,-460.0,0.0002,2]
[369814451,1751731849587,-777.05,0.0002,2]
[369814453,1751731849597,-460.0,0.0002,2]